bitfinex-derivatives/quotes_SOLF0:USTF0_20260204
["timestamp","ask_amount","ask_price","bid_price","bid_amount"]
[1770246972097,9.9305,90.821,90.757,3.70699833]
[1770246973004,4.00457694,90.838,90.759,3.70699833]
[1770246973611,9.9296,90.829,90.759,3.70699833]
[1770246974106,4.00457694,90.828,90.742,3.70699833]
[1770246975003,4.00457694,90.828,90.759,3.70699833]
[1770246976104,4.00457694,90.847,90.771,3.70699833]
[1770246976307,4.00457694,90.865,90.771,3.70699833]
[1770246976511,4.00457694,90.883,90.771,3.70699833]
[1770246976708,9.9251,90.87,90.804,3.70699833]
[1770246976904,4.00457694,90.883,90.804,3.70699833]
[1770246977106,9.9228,90.891,90.821,9.9304]
[1770246977310,4.00457694,90.889,90.781,3.70699833]
[1770246977711,9.9274,90.85,90.781,3.70699833]
[1770246977905,4.00457694,90.859,90.781,3.70699833]
[1770246978702,9.9266,90.857,90.793,9.9335]
[1770246979312,4.00457694,90.859,90.801,3.70699833]
[1770246980511,4.00457694,90.859,90.803,3.70699833]
[1770246982102,7.55341243,90.89,90.793,9.9335]
[1770246982103,4.00457694,90.854,90.793,9.9335]
[1770246982307,0.0707888,90.84,90.779,3.70699833]
[1770246982509,0.0707888,90.84,90.799,9.9328]
[1770246982707,0.0707888,90.84,90.795,3.70699833]
[1770246982911,4.00457694,90.854,90.795,3.70699833]
[1770246983808,3.92249138,90.909,90.795,3.70699833]
[1770246984907,3.92249138,90.892,90.829,9.9295]
[1770246985413,0.0704374,90.87,90.829,9.9295]
[1770246985908,0.0704374,90.87,90.837,9.9287]
[1770246986116,0.0704374,90.87,90.838,3.86196561]
[1770246986308,3.92249138,90.909,90.838,3.86196561]
[1770246986812,3.92249138,90.927,90.857,3.86196561]
[1770246987412,29.59341243,90.95,90.857,3.86196561]
[1770246987413,13.84169138,90.924,90.87,9.9251]
[1770246988516,3.92249138,90.918,90.821,3.86196561]
[1770246989616,13.84339138,90.909,90.85,9.9273]
[1770246989810,3.92249138,90.908,90.85,9.9273]
[1770246990214,3.92249138,90.908,90.842,3.86196561]
[1770246990415,3.92249138,90.908,90.87,0.0695882]
[1770246990615,3.92249138,90.908,90.801,3.86196561]
[1770246991013,9.9235,90.885,90.831,9.9293]
[1770246991212,3.92249138,90.891,90.831,3.86196561]
[1770246991517,3.92249138,90.908,90.831,3.86196561]
[1770246991715,3.92249138,90.907,90.846,9.9277]
[1770246992214,9.9216,90.902,90.837,3.86196561]
[1770246993015,13.84449138,90.899,90.844,9.9279]
[1770246994016,3.92249138,90.895,90.835,9.9288]
[1770246994213,3.92249138,90.895,90.82,3.86196561]
[1770246995019,3.92249138,90.895,90.843,9.928]
[1770246996820,3.92249138,90.893,90.837,3.86196561]
[1770246997616,9.9241,90.88,90.837,3.86196561]
[1770246997813,9.9241,90.88,90.828,9.9297]
[1770246998018,3.92249138,90.879,90.82,3.86196561]
[1770246998222,3.92249138,90.879,90.829,9.9296]
[1770246998619,3.92249138,90.879,90.84,0.07157281]
[1770246999627,9.9252,90.87,90.821,9.9304]
[1770247000233,9.926,90.863,90.82,3.86196561]
[1770247000528,3.92249138,90.862,90.811,9.9315]
[1770247000832,3.92249138,90.862,90.782,3.86196561]
[1770247001331,3.92249138,90.849,90.764,3.86196561]
[1770247002733,9.9298,90.828,90.781,9.9348]
[1770247004229,3.92249138,90.833,90.781,9.9348]
[1770247004621,3.92249138,90.849,90.786,3.86196561]
[1770247005429,9.9279,90.845,90.79,3.86196561]
[1770247006534,3.92249138,90.849,90.796,9.9331]
[1770247006834,3.92249138,90.849,90.79,3.86196561]
[1770247007834,3.92249138,90.849,90.803,9.9324]
[1770247008630,9.9277,90.847,90.803,9.9324]
[1770247008829,9.9277,90.847,90.817,0.06998873]
[1770247009930,19.8462,90.889,90.744,3.86196561]
[1770247009931,3.92249138,90.84,90.744,3.86196561]
[1770247010529,9.9302,90.824,90.773,3.86196561]
[1770247011739,9.9293,90.832,90.783,9.9346]
[1770247013041,0.07061974,90.817,90.783,9.9346]
[1770247013941,0.07061974,90.817,90.791,3.98083184]
[1770247014543,13.85099138,90.84,90.791,3.98083184]
[1770247014941,9.9276,90.848,90.794,3.98083184]
[1770247015138,3.84804908,90.879,90.794,3.98083184]
[1770247015742,3.84804908,90.879,90.815,3.98083184]
[1770247016838,9.9247,90.874,90.822,9.9303]
[1770247017344,13.77274908,90.874,90.822,9.9303]
[1770247018140,9.9251,90.871,90.822,9.9303]
[1770247020846,3.75884849,90.909,90.834,3.69548454]
[1770247021545,3.75884849,90.891,90.834,3.69548454]
[1770247022247,9.9244,90.877,90.825,13.62538454]
[1770247022451,3.75884849,90.891,90.825,3.69548454]
[1770247022750,9.9234,90.886,90.842,0.06982911]
[1770247022950,3.75884849,90.891,90.842,0.06982911]
[1770247023446,3.75884849,90.891,90.843,9.928]
[1770247024244,3.75884849,90.919,90.854,3.69548454]
[1770247025552,7.57695365,90.94,90.854,3.69548454]
[1770247025553,3.75884849,90.908,90.857,9.9264]
[1770247027852,3.75884849,90.903,90.818,3.69548454]
[1770247028352,3.75884849,90.903,90.833,3.69548454]
[1770247028544,3.75884849,90.946,90.835,3.69548454]
[1770247028947,3.75884849,90.921,90.868,9.9253]
[1770247029151,3.75884849,90.921,90.869,3.69548454]
[1770247031148,3.75884849,90.938,90.869,3.69548454]
[1770247031856,3.75884849,90.952,90.869,3.69548454]
[1770247032157,3.75884849,90.971,90.871,3.69548454]
[1770247032356,3.75884849,90.971,90.902,3.69548454]
[1770247032861,3.75884849,90.97,90.902,3.69548454]
[1770247033460,13.12304731,91.03,90.87,7.57695365]
[1770247033461,9.75961359,91.025,90.925,3.69548454]
[1770247033656,9.75961359,91.025,90.854,13.52251236]
[1770247033657,5.982e-05,91.103,91.086,154.0246]
[1770247033854,4.895e-05,91.158,91.12,7.57695365]
[1770247034050,9.8856,91.234,91.15,7.57695365]
[1770247034256,153.6761,91.293,91.15,7.57695365]
[1770247034449,153.6761,91.293,91.13,124.0]
[1770247034450,80.19126496,91.332,91.18,7.57695365]
[1770247034650,80.19126496,91.366,91.18,7.57695365]
[1770247034849,87.76821861,91.36,91.214,9.8876]
[1770247035062,87.76821861,91.36,91.21,7.57695365]
[1770247035063,80.19126496,91.36,91.23,7.57695365]
[1770247035253,26.39241223,91.367,91.26,153.7309]
[1770247035454,26.39241223,91.367,91.297,9.8786]
[1770247035651,80.19126497,91.488,91.327,153.6185]
[1770247035853,80.19126497,91.488,91.349,153.5807]
[1770247036152,80.19126497,91.515,91.37,153.5449]
[1770247036455,80.19126497,91.54,91.4,7.57695365]
[1770247036657,80.19126497,91.54,91.411,153.4771]
[1770247036857,80.19126497,91.567,91.432,153.4417]
[1770247037157,80.19126497,91.567,91.46,7.57695365]
[1770247037352,80.19126497,91.567,91.43,7.57695365]
[1770247037758,80.19126497,91.567,91.46,7.57695365]
[1770247037953,80.19126497,91.567,91.43,7.57695365]
[1770247038155,80.19126497,91.549,91.39,7.57695365]
[1770247038352,80.19126497,91.529,91.357,153.5669]
[1770247038550,80.19126497,91.529,91.349,153.5805]
[1770247038850,80.19126497,91.529,91.28,30.02222556]
[1770247038851,80.19126497,91.489,91.308,153.6503]
[1770247039049,80.19126497,91.489,91.299,153.6649]
[1770247039050,80.19126497,91.459,91.299,9.8785]
[1770247039258,153.3379,91.495,91.254,153.7415]
[1770247039259,80.19126497,91.449,91.254,153.7415]
[1770247039458,80.19126497,91.419,91.248,153.7505]
[1770247039754,80.19126497,91.419,91.247,9.884]
[1770247039960,80.19126497,91.419,91.27,30.02222556]
[1770247040155,80.19126497,91.459,91.33,30.02222556]
[1770247040355,80.19126497,91.488,91.36,30.02222556]
[1770247040557,153.2106,91.571,91.283,21.98]
[1770247040558,80.19126497,91.569,91.392,153.5086]
[1770247040760,80.19126497,91.569,91.42,30.02222556]
[1770247041160,80.19126497,91.619,91.489,9.8579]
[1770247041353,80.19126497,91.627,91.45,30.02222556]
[1770247041553,80.19126497,91.647,91.455,153.403]
[1770247041761,80.19126497,91.647,91.483,153.3556]
[1770247041955,80.19126497,91.647,91.448,153.4139]
[1770247041956,153.1349,91.616,91.45,30.02222556]
[1770247042161,80.19126497,91.604,91.45,30.02222556]
[1770247042458,80.19126497,91.579,91.42,30.02222556]
[1770247042648,80.19126497,91.579,91.45,30.02222556]
[1770247042853,80.19126497,91.579,91.451,153.4096]
[1770247043052,80.19126497,91.579,91.45,30.02222556]
[1770247043254,80.19126497,91.641,91.456,153.4015]
[1770247043454,80.19126497,91.641,91.427,153.4498]
[1770247043455,80.19126497,91.659,91.51,30.02222556]
[1770247043653,80.19126497,91.659,91.485,153.352]
[1770247043654,80.19126497,91.709,91.54,30.02222556]
[1770247043959,80.19126497,91.709,91.57,30.02222556]
[1770247044355,30.02222556,91.66,91.449,153.4136]
[1770247044558,458.8544,91.726,91.415,153.4697]
[1770247044559,79.92415563,91.67,91.51,183.33232556]
[1770247044758,30.02222556,91.77,91.59,9.8471]
[1770247045064,79.92415563,91.701,91.53,30.02222556]
[1770247045358,79.92415563,91.701,91.466,153.3842]
[1770247045359,79.92415563,91.778,91.62,30.02222556]
[1770247045560,152.6522,91.906,91.71,30.02222556]
[1770247045859,152.6522,91.906,91.659,153.0608]
[1770247045860,79.92415563,91.944,91.756,152.8995]
[1770247046062,79.92415563,91.944,91.78,30.02222556]
[1770247046263,79.92415563,91.944,91.743,152.9208]
[1770247046264,30.02222556,92.05,91.87,30.02222556]
[1770247046463,152.4943,92.001,91.84,30.02222556]
[1770247046657,152.1726,92.195,91.99,30.02222556]
[1770247046856,152.0523,92.268,92.07,30.02222556]
[1770247047153,152.0523,92.268,91.98,30.02222556]
[1770247047154,89.48,92.275,92.14,30.02222556]
[1770247047458,152.0741,92.255,91.927,152.6157]
[1770247047758,152.0741,92.255,91.88,21.9]
[1770247047759,152.1286,92.222,91.877,152.6985]
[1770247047958,152.198,92.18,91.846,152.7506]
[1770247048158,66.50317799,92.196,91.836,152.7672]
[1770247048358,66.50317799,92.049,91.88,152.6932]
[1770247048561,66.50317799,92.149,91.953,152.5728]
[1770247048753,66.50317799,92.099,91.898,152.6633]
[1770247048955,66.50317799,92.122,91.968,152.5476]
[1770247049155,66.28898694,92.179,91.993,152.505]
[1770247049354,66.28898694,92.179,91.96,30.02222556]
[1770247049355,66.28898694,92.169,91.951,152.5761]
[1770247049553,66.28898694,92.169,91.987,152.5164]
[1770247049755,66.28898694,92.139,91.939,152.5961]
[1770247049956,66.28898694,92.139,91.946,152.5841]
[1770247050161,66.28898694,92.139,91.93,30.02222556]
[1770247050465,65.95898694,92.099,91.93,30.02222556]
[1770247050666,30.02222556,92.05,91.832,152.7734]
[1770247050961,30.02222556,92.02,91.825,9.8218]
[1770247051158,30.02222556,91.99,91.78,30.02222556]
[1770247051456,30.02222556,91.99,91.741,152.9251]
[1770247051457,30.02222556,92.05,91.866,152.7174]
[1770247051655,30.02222556,92.1,91.915,152.6347]
[1770247051862,30.02222556,92.1,91.9,30.02222556]
[1770247052053,30.02222556,92.11,91.917,152.6326]
[1770247052256,162.1192,92.102,91.9,30.02222556]
[1770247052457,30.02222556,92.11,91.9,30.02222556]
[1770247052458,65.91210287,92.101,91.92,162.4385]
[1770247052655,65.91210287,92.04,91.85,30.02222556]
[1770247052856,65.91210287,92.04,91.823,152.7873]
[1770247053059,65.91210287,92.019,91.866,152.717]
[1770247053259,65.91210287,92.019,91.85,30.02222556]
[1770247053456,65.82655917,92.052,91.88,30.02222556]
[1770247053656,65.82655917,92.007,91.839,152.7617]
[1770247053856,65.82655917,92.04,91.889,152.6784]
[1770247054056,65.82655917,92.04,91.904,9.8133]
[1770247054265,65.82655917,92.078,91.954,152.57]
[1770247054457,65.82655917,92.129,91.967,9.8067]
[1770247054660,65.82652758,92.069,91.876,152.6993]
[1770247054861,65.82652758,92.039,91.84,30.02222556]
[1770247055068,65.50034844,92.009,91.827,152.7809]
[1770247055266,65.50034844,92.009,91.828,152.7806]
[1770247055470,65.50034844,92.009,91.801,152.8255]
[1770247055471,65.50034844,92.009,91.84,30.02222556]
[1770247055665,65.50034844,92.009,91.854,152.7366]
[1770247055868,65.50034844,92.009,91.84,30.02222556]
[1770247056171,65.50034844,92.009,91.869,9.8172]
[1770247056471,65.50034844,92.009,91.84,30.02222556]
[1770247056669,65.50034844,92.009,91.837,152.7644]
[1770247056865,65.50034844,92.009,91.86,30.02222556]
[1770247057062,65.50034844,92.009,91.858,9.8183]
[1770247057262,65.50034844,92.009,91.861,152.725]
[1770247057467,65.50034844,92.009,91.82,30.02222556]
[1770247057662,30.02222556,92.01,91.82,30.02222556]
[1770247057663,64.8797606,91.979,91.82,30.02222556]
[1770247057966,64.8797606,91.949,91.76,182.91492556]
[1770247058160,64.8797606,91.949,91.791,9.8255]
[1770247058364,30.02222556,91.95,91.729,152.9443]
[1770247058365,74.6916606,91.919,91.738,152.9296]
[1770247058562,64.8797606,91.919,91.73,30.02222556]
[1770247058772,64.8797606,91.919,91.747,152.9154]
[1770247058974,64.8797606,91.897,91.73,30.02222556]
[1770247059268,64.8797606,91.897,91.614,459.4086]
[1770247059269,64.73704326,91.922,91.78,152.8603]
[1770247059468,64.73704326,91.919,91.736,152.9338]
[1770247059671,64.73704326,91.917,91.738,152.9293]
[1770247060371,64.73704326,91.889,91.757,9.8291]
[1770247060575,64.73704326,91.889,91.73,30.02222556]
[1770247060873,152.6016,91.936,91.718,152.9624]
[1770247060874,64.73704326,91.859,91.725,152.9511]
[1770247061075,64.73704326,91.859,91.712,152.973]
[1770247061271,64.73704326,91.859,91.71,30.02222556]
[1770247061473,64.73704326,91.859,91.695,21.82]
[1770247061474,64.68874895,91.857,91.702,152.9904]
[1770247061876,64.68874895,91.829,91.715,9.8336]
[1770247062767,64.68874895,91.829,91.684,153.02]
[1770247062967,64.68874895,91.829,91.672,153.0392]
[1770247062968,64.68874895,91.829,91.65,30.02222556]
[1770247063172,74.51034895,91.829,91.688,9.8365]
[1770247063568,64.68874895,91.829,91.688,9.8365]
[1770247063775,64.6696881,91.799,91.668,9.8387]
[1770247063975,64.6696881,91.799,91.677,153.0316]
[1770247064269,64.6696881,91.799,91.689,9.8364]
[1770247065073,64.6696881,91.832,91.695,153.001]
[1770247065274,64.6696881,91.832,91.701,152.9908]
[1770247065573,64.6696881,91.832,91.732,9.8318]
[1770247066081,64.68103082,91.792,91.658,9.8397]
[1770247066270,64.68103082,91.792,91.625,153.1189]
[1770247066578,64.68103082,91.792,91.638,153.0964]
[1770247066780,64.68103082,91.784,91.654,153.0702]
[1770247066978,64.68103082,91.784,91.635,153.1015]
[1770247066979,64.68103082,91.784,91.652,153.0736]
[1770247067178,64.68103082,91.784,91.654,153.0706]
[1770247067382,64.68103082,91.784,91.675,9.8379]
[1770247067774,64.68103082,91.784,91.656,153.0669]
[1770247067973,64.68103082,91.784,91.674,9.838]
[1770247068173,64.68103082,91.784,91.666,153.0504]
[1770247068374,64.68103082,91.784,91.693,9.836]
[1770247068673,64.37611726,91.769,91.595,153.1686]
[1770247068870,64.37611726,91.769,91.643,9.8414]
[1770247069272,64.37611726,91.769,91.59,30.02222556]
[1770247069476,64.2970107,91.745,91.625,153.1184]
[1770247069679,64.2970107,91.745,91.626,153.117]
[1770247069881,64.2970107,91.745,91.653,9.8403]
[1770247070183,64.2970107,91.745,91.624,153.1205]
[1770247070184,64.2970107,91.745,91.645,153.0853]
[1770247070384,64.2970107,91.775,91.65,153.0758]
[1770247070579,64.2970107,91.775,91.672,9.8382]
[1770247070776,64.2970107,91.806,91.691,153.008]
[1770247070979,64.2970107,91.806,91.731,9.8319]
[1770247071184,64.28499423,91.853,91.732,152.94]
[1770247071475,64.28499423,91.853,91.684,459.0586]
[1770247071476,9.8191,91.852,91.73,9.832]
[1770247071682,64.28499423,91.851,91.73,9.832]
[1770247072281,64.28499423,91.846,91.73,9.832]
[1770247072782,64.28499423,91.844,91.73,9.832]
[1770247072983,64.28499423,91.844,91.686,153.0168]
[1770247072984,64.28499423,91.839,91.7,152.9936]
[1770247073283,64.28499423,91.839,91.696,152.9998]
[1770247073582,64.28499423,91.839,91.744,9.8305]
[1770247074174,1.89596698,91.864,91.726,9.8324]
[1770247074175,64.18706265,91.837,91.726,9.8324]
[1770247074581,9.8208,91.836,91.726,9.8324]
[1770247074785,64.18706265,91.835,91.726,9.8324]
[1770247075579,21.29643959,91.85,91.709,9.8342]
[1770247075580,64.2524579,91.833,91.709,9.8342]
[1770247076182,64.2524579,91.808,91.691,9.8362]
[1770247076381,64.2524579,91.808,91.639,153.0946]
[1770247076580,64.2524579,91.775,91.637,153.0983]
[1770247076784,64.2524579,91.775,91.671,9.8383]
[1770247076981,64.2524579,91.806,91.667,153.0488]
[1770247077279,64.2524579,91.806,91.655,153.0675]
[1770247077479,64.2524579,91.806,91.64,21.29643959]
[1770247077684,64.29493827,91.771,91.648,153.0796]
[1770247077879,64.29493827,91.771,91.687,9.8366]
[1770247078686,64.29493827,91.771,91.648,153.0803]
[1770247078881,64.29493827,91.771,91.649,2.73088233]
[1770247079088,64.29493827,91.749,91.65,2.731266]
[1770247079383,64.29493827,91.749,91.651,2.731266]
[1770247079579,64.29493827,91.749,91.652,2.731266]
[1770247079884,64.29493827,91.749,91.661,9.8394]
[1770247080085,64.29493827,91.749,91.61,174.44013959]
[1770247080086,64.29493827,91.749,91.662,2.73126143]
[1770247080278,64.29493827,91.749,91.663,2.73126143]
[1770247080477,64.29493827,91.749,91.635,153.1015]
[1770247080478,64.29493827,91.749,91.681,9.8373]
[1770247080675,64.29493827,91.749,91.619,153.1278]
[1770247080879,64.33138887,91.736,91.645,9.8411]
[1770247081077,64.33138887,91.736,91.646,2.73145945]
[1770247081283,64.33138887,91.736,91.647,2.73145945]
[1770247081483,64.48475376,91.721,91.648,2.73145945]
[1770247081682,64.48475376,91.721,91.649,2.73145945]
[1770247081879,64.48475376,91.721,91.65,2.73145945]
[1770247082084,64.48475376,91.721,91.655,9.8401]
[1770247082384,64.48475376,91.769,91.656,2.73145945]
[1770247082589,64.48475376,91.769,91.657,2.73145945]
[1770247082790,64.48475376,91.769,91.658,2.73145945]
[1770247082990,64.48475376,91.769,91.659,2.73145945]
[1770247083185,64.48475376,91.73,91.66,2.73145945]
[1770247083492,64.48475376,91.73,91.576,12.41910671]
[1770247083493,64.34813803,91.769,91.661,2.73145945]
[1770247083786,64.34813803,91.766,91.662,2.73145945]
[1770247084090,64.34813803,91.766,91.663,13.56177248]
[1770247084285,74.17653803,91.764,91.688,9.8365]
[1770247084591,74.17653803,91.764,91.634,153.1028]
[1770247084592,64.34813803,91.764,91.689,2.73145945]
[1770247084787,64.34813803,91.764,91.616,8.62477881]
[1770247084991,61.61645846,91.737,91.653,9.8402]
[1770247085186,61.61645846,91.737,91.654,10.92128228]
[1770247085382,61.61645846,91.737,91.622,8.62477881]
[1770247085584,61.61645846,91.737,91.623,19.54903131]
[1770247085788,61.61645846,91.737,91.624,10.9242525]
[1770247085985,61.61645846,91.737,91.625,10.9242525]
[1770247086188,61.61645846,91.737,91.638,8.62477881]
[1770247086482,61.61645846,91.737,91.657,8.62477881]
[1770247086795,61.61645846,91.737,91.636,153.0998]
[1770247086796,61.60836318,91.763,91.688,8.62477881]
[1770247087088,61.60836318,91.763,91.639,8.62477881]
[1770247087292,21.29643959,91.78,91.654,8.62477881]
[1770247087293,61.92756489,91.741,91.654,8.62477881]
[1770247087493,61.92756489,91.741,91.655,10.76431364]
[1770247087791,61.92756489,91.741,91.669,8.62477881]
[1770247087990,61.92756489,91.741,91.67,10.76431364]
[1770247088288,61.92756489,91.741,91.671,19.38909245]
[1770247088491,61.92756489,91.741,91.672,10.76431364]
[1770247088792,61.92756489,91.741,91.681,9.8372]
[1770247088996,61.92756489,91.741,91.682,10.76431364]
[1770247089201,61.92756489,91.741,91.683,10.76431364]
[1770247089398,61.92756489,91.741,91.616,24.83821343]
[1770247089399,61.92756489,91.741,91.662,8.62477881]
[1770247089593,61.92756489,91.741,91.602,19.6916]
[1770247089594,61.92756489,91.741,91.663,10.7929228]
[1770247089796,61.92756489,91.741,91.639,8.62477881]
[1770247089994,21.29643959,91.77,91.602,19.6916]
[1770247089995,56.55409469,91.735,91.662,9.8393]
[1770247090292,56.55409469,91.735,91.649,8.62477881]
[1770247090489,56.55409469,91.738,91.644,8.62477881]
[1770247090689,56.55409469,91.738,91.648,8.62477881]
[1770247090891,56.55409469,91.738,91.649,8.62477881]
[1770247091086,56.55409469,91.738,91.666,8.62477881]
[1770247091290,56.55409469,91.738,91.667,8.62477881]
[1770247091490,56.57225406,91.764,91.673,8.62477881]
[1770247091694,56.57225406,91.764,91.687,8.62477881]
[1770247091894,152.7178,91.866,91.663,153.0544]
[1770247091895,56.57225406,91.792,91.743,9.8306]
[1770247092287,56.57225406,91.792,91.722,8.62477881]
[1770247092492,56.57225406,91.761,91.694,8.62477881]
[1770247092695,56.57225406,91.761,91.678,8.62477881]
[1770247092897,56.57225406,91.761,91.632,153.1069]
[1770247093099,56.57225406,91.756,91.677,9.8377]
[1770247093599,21.29643959,91.78,91.61,21.29643959]
[1770247093600,56.55426847,91.741,91.61,21.29643959]
[1770247093792,56.55426847,91.741,91.613,153.1388]
[1770247093997,56.55426847,91.741,91.612,153.1404]
[1770247094198,56.55426847,91.741,91.631,153.1081]
[1770247094492,56.55426847,91.741,91.624,153.1205]
[1770247094700,56.22704512,91.741,91.68,9.8373]
[1770247095090,56.22704512,91.741,91.594,153.1698]
[1770247095289,21.29643959,91.78,91.623,153.1209]
[1770247095501,21.29643959,91.78,91.614,153.1362]
[1770247095700,21.29643959,91.78,91.572,459.622]
[1770247095701,21.29643959,91.81,91.639,153.0955]
[1770247096201,19.6509,91.792,91.612,153.1392]
[1770247096398,19.6509,91.792,91.621,153.1249]
[1770247096592,56.41428988,91.791,91.621,153.1249]
[1770247096791,56.41428988,91.746,91.687,9.8366]
[1770247096993,56.41428988,91.746,91.688,2.73172871]
[1770247097200,56.41453979,91.774,91.713,9.8338]
[1770247097396,56.41453979,91.774,91.643,153.0876]
[1770247097701,56.41453979,91.774,91.66,153.0604]
[1770247097890,56.41453979,91.774,91.664,153.0529]
[1770247098090,55.04867543,91.799,91.664,153.0529]
[1770247098298,55.04867543,91.799,91.743,9.8306]
[1770247098694,55.04867543,91.799,91.692,19.6721]
[1770247098695,55.04867543,91.799,91.705,152.9846]
[1770247098993,21.29643959,91.85,91.684,153.0199]
[1770247099196,21.29643959,91.85,91.682,153.0238]
[1770247099398,9.8255,91.792,91.673,153.0384]
[1770247099599,21.29643959,91.85,91.688,153.0127]
[1770247099802,21.29643959,91.85,91.683,153.0206]
[1770247099999,19.6389,91.848,91.692,153.0068]
[1770247100195,19.6389,91.848,91.685,153.0185]
[1770247100196,19.6389,91.848,91.685,119.71166947]
[1770247100400,21.29643959,91.85,91.67,21.29643959]
[1770247100401,21.29643959,91.85,91.705,152.985]
[1770247100696,21.29643959,91.85,91.679,13.30916481]
[1770247100697,21.29643959,91.85,91.708,152.98]
[1770247100897,46.10645192,91.849,91.716,152.9656]
[1770247101098,19.6324,91.879,91.708,152.98]
[1770247101099,46.10645192,91.84,91.72,19.6663]
[1770247101292,46.10645192,91.84,91.727,152.9477]
[1770247101493,46.10645192,91.84,91.692,9.98187361]
[1770247101694,46.09708308,91.8,91.68,19.6749]
[1770247101903,46.09708308,91.8,91.66,31.2783132]
[1770247102104,21.29643959,91.82,91.686,153.0156]
[1770247102105,46.09708308,91.79,91.686,153.0156]
[1770247102301,46.09708308,91.849,91.704,9.98187361]
[1770247102503,46.09708308,91.849,91.716,9.98187361]
[1770247102702,46.09708308,91.849,91.709,9.98187361]
[1770247103003,46.09708308,91.809,91.698,9.98187361]
[1770247103401,46.09708308,91.809,91.687,9.98187361]
[1770247103704,46.10335185,91.784,91.682,9.98187361]
[1770247103902,46.10335185,91.784,91.686,9.98187361]
[1770247104104,21.29643959,91.82,91.63,153.11]
[1770247104105,46.10394775,91.773,91.675,9.98187361]
[1770247104702,46.10394775,91.773,91.679,9.98187361]
[1770247104903,46.10394775,91.773,91.675,9.98187361]
[1770247105204,46.10394775,91.773,91.707,9.8345]
[1770247105406,46.10394775,91.773,91.682,9.98187361]
[1770247105905,46.10394775,91.773,91.719,9.8332]
[1770247108395,46.10394775,91.773,91.728,9.8323]
[1770247108603,46.10394775,91.773,91.68,9.98187361]
[1770247108802,46.10394775,91.773,91.623,153.122]
[1770247108803,46.10394775,91.773,91.664,9.98187361]
[1770247109001,46.10394775,91.773,91.693,9.836]
[1770247109697,45.95118463,91.749,91.693,9.836]
[1770247110005,45.95118463,91.749,91.677,9.8376]
[1770247110206,45.95118463,91.749,91.655,9.98187361]
[1770247110406,45.95118463,91.749,91.661,9.98187361]
[1770247110807,45.95118463,91.749,91.66,9.98187361]
[1770247111011,45.95118463,91.749,91.694,9.8358]
[1770247111403,45.95118463,91.749,91.656,19.6799]
[1770247111710,45.95118463,91.749,91.665,9.98187361]
[1770247112208,45.95118463,91.749,91.687,9.8366]
[1770247112507,3.47889547,91.722,91.599,10.13612672]
[1770247112702,21.29643959,91.7,91.552,3.95010292]
[1770247112901,21.29643959,91.73,91.559,7.31897406]
[1770247113100,9.8351,91.702,91.607,7.31897406]
[1770247113303,21.29643959,91.73,91.607,7.31897406]
[1770247113510,152.958,91.722,91.607,7.31897406]
[1770247113706,152.949,91.727,91.607,7.31897406]
[1770247114007,21.29643959,91.64,91.523,7.27846419]
[1770247114409,153.1087,91.632,91.525,7.27846419]
[1770247114610,21.29643959,91.61,91.446,7.27846419]
[1770247114909,9.8475,91.587,91.51,7.27846419]
[1770247115107,21.29643959,91.61,91.441,7.27846419]
[1770247115317,9.85,91.563,91.479,9.859]
[1770247115610,9.85,91.563,91.48,7.22205244]
[1770247116011,9.8473,91.588,91.502,7.22205244]
[1770247116206,9.8473,91.588,91.448,33.09]
[1770247116207,153.1529,91.605,91.441,7.22205244]
[1770247116400,153.1529,91.605,91.408,153.4813]
[1770247116401,21.29643959,91.61,91.469,17.08215244]
[1770247116603,153.1576,91.602,91.47,7.22205244]
[1770247116805,21.29643959,91.58,91.47,7.22205244]
[1770247117604,9.8506,91.558,91.47,7.22205244]
[1770247117801,21.29643959,91.58,91.47,7.22205244]
[1770247118009,153.1991,91.578,91.443,7.3129135]
[1770247118402,9.8534,91.531,91.443,7.3129135]
[1770247119008,21.29643959,91.58,91.445,7.3129135]
[1770247119409,21.29643959,91.61,91.491,7.32034586]
[1770247120210,21.29643959,91.64,91.509,7.32034586]
[1770247120709,21.29643959,91.64,91.44,153.4285]
[1770247120710,21.29643959,91.61,91.481,7.32034586]
[1770247120917,153.1484,91.608,91.481,7.32034586]
[1770247121116,9.8506,91.558,91.481,7.32034586]
[1770247121516,21.29643959,91.61,91.481,7.32034586]
[1770247121717,1.90159258,91.601,91.481,7.32034586]
[1770247121911,9.8491,91.571,91.481,7.32034586]
[1770247122308,1.90159258,91.601,91.484,7.36275656]
[1770247122513,9.849,91.573,91.484,7.36275656]
[1770247123013,21.29643959,91.61,91.484,7.36275656]
[1770247123518,153.1704,91.595,91.484,7.36275656]